Cogmind - Beta 13 *** ADVENTURER MODE // 2024.05.30 @ 23:59:11 Player: IlyaSM Result: Destroyed by G-47 Trooper with Particle Gun Performance ------------- Evolutions (2) 1000 Regions Visited (4) 800 Robots Destroyed (45) 225 Value Destroyed (1458) 1458 Prototype IDs (5) 100 Alien Tech Used (0) 0 Bonus (0) 0 TOTAL SCORE: 3583 Bonus ------- None Cogmind --------- Core Integrity 0/550 Matter 245/300 Energy 100/100 System Corruption 0% Temperature Cool (9) Movement Core (400) Ox7 Location -8/Storage Parts ------- > --- POWER (1) -------- (None) > --- PROPULSION (2) --- (None) > --- UTILITY (5) ------ Large Storage Unit Structural Scanner Improved Targeting Computer > --- WEAPON (3) ------- Mining Claw > --- INVENTORY (15) --- Heavy Ion Engine Aluminum Leg Small Storage Unit System Shield Peak State ------------ > --- POWER ------------ Heavy Ion Engine > --- PROPULSION ------- Compact Wheel > --- UTILITY ---------- Improved Heat Sink Large Storage Unit Structural Scanner Trap Scanner Improved Targeting Computer > --- WEAPON ----------- Heavy Particle Gun Light EM Pulse Cannon Assault Rifle > --- INVENTORY -------- Heavy Ion Engine Aluminum Leg Small Storage Unit Light Armor Plating High-powered Shotgun Light Cannon Mining Claw [Rating: 22] Favorites ----------- Power Ion Engine Engine Ion Engine Power Core Light Nuclear Core Propulsion Aluminum Leg Leg Aluminum Leg Wheel Compact Wheel Utility Improved Terrain Scanner Device Improved Terrain Scanner Storage Small Storage Unit Processor Improved Targeting Computer Protection Light Armor Plating Weapon Assault Rifle Energy Gun Heavy Particle Gun Energy Cannon Light EM Pulse Cannon Ballistic Gun Assault Rifle Ballistic Cannon Light Cannon Launcher Grenade Launcher Slashing Weapon Mining Claw Special Melee Weapon Datajack Build | -11 -10 -9 -8 -8 ------- Run | Yrd Mat Mat Mat Sto Slots Evolved 4 | . . 2 2 . Power . | . . . . . Propulsion . | . . . . . Utility 3 | . . 2 1 . Weapon 1 | . . . 1 . Parts Attached 36 | 7 6 8 6 9 Power 3 | 1 . . 1 1 Engine 2 | 1 . . . 1 Core 1 | . . . 1 . Reactor . | . . . . . Propulsion 6 | 2 1 1 1 1 Treads . | . . . . . Leg 4 | 2 1 1 . . Wheel 2 | . . . 1 1 Hover . | . . . . . Flight . | . . . . . Utility 8 | 2 . 3 1 2 Device 4 | 1 . 1 1 1 Storage 2 | 1 . 1 . . Processor 1 | . . 1 . . Hackware . | . . . . . Protection 1 | . . . . 1 Artifact . | . . . . . Weapon 19 | 2 5 4 3 5 Energy Gun 2 | . . . 2 . Energy Cannon 4 | . 1 1 1 1 Ballistic Gun 6 | 2 2 . . 2 Ballistic Cannon 1 | . . . . 1 Launcher 3 | . 2 1 . . Special Weapon . | . . . . . Impact Weapon . | . . . . . Slashing Weapon 1 | . . . . 1 Piercing Weapon . | . . . . . Special Melee Weapon 2 | . . 2 . . Unidentified Prototypes 3 | . . . 2 1 Parts Lost 18 | . . 1 6 11 Power 3 | . . . 2 1 Propulsion 4 | . . . 2 2 Utility 3 | . . . . 3 Weapon 8 | . . 1 2 5 Highest Loss Streak 9 | . . 1 5 9 To Critical Strikes 1 | . . . . 1 Average Slot Usage (%) 94 | . 100 99 81 77 Engine 11 | . 14 11 4 7 Leg 20 | . 28 22 15 . Wheel 1 | . . . . 8 Device 17 | . 14 22 16 19 Storage 11 | . 14 11 9 9 Processor 5 | . . 11 9 9 Energy Gun 1 | . . . 2 7 Energy Cannon 2 | . 1 2 6 4 Ballistic Gun 11 | . 23 . . 9 Launcher 5 | . 3 10 7 . Special Melee Weapon 3 | . . 8 7 . Naked Turns . | . . . . . Heaviest Build 41 | 13 19 31 35 41 Greatest Support 26 | 20 20 23 23 26 Greatest Overweight (x) 9 | 3 . 1 9 9 Average Overweight (x) . | . . . 1 1 Largest Inventory Capacity 15 | 8 8 15 15 15 Average Capacity 11 | 7 8 12 15 15 Most Carried 8 | . 8 7 6 7 Average Carried 4 | . 4 5 5 5 Final Capacity 15 | 8 8 15 15 15 Final Carried 7 | . 7 6 6 4 Class Distribution -------------------- 91% | Mutant 8% | Gunner Dominant Class ---------------- Mutant | -10/Materials Mutant | -9/Materials Mutant | -8/Materials Gunner | -8/Storage Resources | -11 -10 -9 -8 -8 ----------- Run | Yrd Mat Mat Mat Sto Matter Collected 1065 | 216 249 76 160 364 Remotely . | . . . . . Salvage Created 1500 | 94 464 218 349 375 Parts 80 | 2 30 11 16 21 Haulers Intercepted 1 | . . . 1 . Recyclers Shooed 2 | . . . 1 1 Parts Field Recycled . | . . . . . Retrieved Matter . | . . . . . Parts Self-Destructed . | . . . . . Prevented . | . . . . . Kills | -11 -10 -9 -8 -8 ------- Run | Yrd Mat Mat Mat Sto Combat Hostiles Destroyed 35 | . 14 5 8 8 Guns 20 | . 12 . 2 6 Cannons 6 | . . 3 1 2 AOE 9 | . 2 2 5 . Classes Destroyed 9 | 2 3 2 1 1 Builder 2 | . . 1 . 1 Tunneler 1 | 1 . . . . Hauler 1 | . . . 1 . Recycler 2 | 1 . . 1 . Operator 1 | . . . . 1 Watcher 3 | . 1 1 . 1 Swarmer 5 | . 3 . . 2 Grunt 23 | . 11 2 7 3 Sentry 7 | . . 3 1 3 Best Kill Streak 8 | 2 8 4 6 6 Combat Bots Only 7 | . 7 2 5 5 Max Kills in Single Turn 1 | 1 1 1 1 1 Gunslinging . | . . . . . Exploded 1 | . 1 1 1 . Melee . | . . . . . Uniques/NPCs Destroyed . | . . . . . Combat | -11 -10 -9 -8 -8 -------- Run | Yrd Mat Mat Mat Sto Hostile Shots Fired 271 | . 55 33 38 145 Missed 52 | . 16 8 7 21 Damage Taken 2348 | . 354 314 397 1283 Core 647 | . 41 47 149 410 Absorbed by Shields . | . . . . . Ignored by Resistances 682 | . 110 90 111 371 Core Remaining (%) 90 | 100 83 88 . . Volleys Fired 117 | 7 42 22 23 23 Largest 3 | 2 2 2 2 3 Hottest 131 | 40 50 89 86 131 Shots Fired 214 | 14 80 27 39 54 Gun 144 | 14 77 . 10 43 Cannon 36 | . . 13 12 11 Launcher 34 | . 3 14 17 . Special . | . . . . . Kinetic 127 | 14 77 . . 36 Thermal 26 | . . . 10 16 Explosive 34 | . 3 14 17 . Electromagnetic 27 | . . 13 12 2 Robot Hit Streak 27 | 6 27 6 19 22 Robot Miss Streak 3 | 2 3 2 2 2 Penetration Max . | . . . . . Secondary Targets 2 | . 1 . . 1 Max Gunslinging Chain 1 | . 1 . . 1 Shots Hit Robots 186 | 10 66 29 34 47 Core Hits 88 | 4 31 12 21 20 Critical Kills 1 | 1 . . . . Critical Parts Destroyed 1 | . . . . 1 Critical Strikes 3 | 1 . . . 2 Destroy 2 | 1 . . . 1 Blast 1 | . . . . 1 Melee Attacks 22 | . . 20 1 1 Impact . | . . . . . Slashing 1 | . . . . 1 Piercing . | . . . . . Sneak Attacks 18 | . . 17 1 . Combat Hostiles . | . . . . . Follow-up Attacks . | . . . . . Damage Inflicted 3539 | 86 779 510 1302 862 Guns 1520 | 79 610 . 150 681 Cannons 615 | . . 189 245 181 Explosions 1393 | . 169 317 907 . Melee . | . . . . . Ramming 11 | 7 . 4 . . Kinetic 1200 | 79 610 . . 511 Thermal 560 | . . . 253 307 Explosive 1290 | . 169 317 804 . Electromagnetic 478 | . . 189 245 44 Impact . | . . . . . Slashing . | . . . . . Piercing . | . . . . . Highest Corruption 1 | . 1 . . . Average Corruption 1 | . 1 . . . Corruption Purged . | . . . . . Corruption Blocked . | . . . . . Effects 2 | . 2 . . . Matter Fused 1 | . 1 . . . Heat Flow Errors 1 | . 1 . . . Overload Shots . | . . . . . Overflow Damage 79 | . . 25 54 . Projectiles . | . . . . . Explosions 79 | . . 25 54 . Melee . | . . . . . Knockbacks 1 | . . . . 1 Impact . | . . . . . Kinetic 1 | . . . . 1 Secondary . | . . . . . Self-Inflicted Damage 36 | . . 28 8 . Shots 3 | . . 2 1 . Rammed . | . . . . . Targets Rammed 2 | 1 . 1 . . Kicked 2 | 1 . 1 . . Crushed . | . . . . . Highest Temperature 302 | . 83 99 180 302 Average Temperature 76 | . 24 48 61 125 Received Heat Transfer 1098 | . 264 123 243 468 Effects 1 | . . . . 1 Interference 1 | . . . . 1 Siege Activations . | . . . . . Robots Corrupted . | . . . . . Combat Hostiles . | . . . . . Parts Fried . | . . . . . Impact Corruptions . | . . . . . Robots Melted . | . . . . . Combat Hostiles . | . . . . . Parts Melted . | . . . . . Heat Transferred 988 | . . . 396 592 Parts Sabotaged . | . . . . . Parts Stolen . | . . . . . Parts Stripped . | . . . . . Power Chain Reactions 1 | . . . 1 . Alert | -11 -10 -9 -8 -8 ------- Run | Yrd Mat Mat Mat Sto Peak Influence 317 | 10 252 207 317 267 Initial 110 | . 5 18 4 110 Average 116 | 3 135 75 142 165 Maximum Alert Level 1 | . 1 1 1 1 Low Security (%) 76 | 100 76 84 53 68 Level 1 23 | . 23 15 46 31 Level 2 . | . . . . . Level 3 . | . . . . . Level 4 . | . . . . . Level 5 . | . . . . . High Security . | . . . . . Max Security . | . . . . . Squads Dispatched 9 | . 4 . 3 2 Investigation 4 | . 4 . . . Extermination . | . . . . . Reinforcement 2 | . . . 1 1 Assault . | . . . . . Garrison 3 | . . . 2 1 Intercept . | . . . . . Searches Triggered . | . . . . . Construction Impeded . | . . . . . Haulers Reinforced . | . . . . . Active Scanning Responses . | . . . . . Cargo Convoy Interrupts . | . . . . . Stealth | -11 -10 -9 -8 -8 --------- Run | Yrd Mat Mat Mat Sto Distress Signals 5 | . 3 1 . 1 Communications Jammed . | . . . . . Distress Signals . | . . . . . Times Spotted 52 | . 21 6 10 15 Peak Tracking Total 7 | . 4 3 4 7 Tactical Retreats 3 | . 1 1 1 . Traps | -11 -10 -9 -8 -8 ------- Run | Yrd Mat Mat Mat Sto Traps Triggered 1 | . 1 . . . Indirectly . | . . . . . Trap Hack Attempts . | . . . . . Triggered . | . . . . . Disarmed . | . . . . . Reprogrammed . | . . . . . Reused . | . . . . . Traps Extracted . | . . . . . Installed . | . . . . . Triggered . | . . . . . Machines | -11 -10 -9 -8 -8 ---------- Run | Yrd Mat Mat Mat Sto Machines Disabled 4 | . . . 4 . Max in Single Turn 2 | . . . 2 . Machines Repaired . | . . . . . Machines Dismantled . | . . . . . Machines Sabotaged . | . . . . . Overloaded Fab Kills . | . . . . . Hacking | -11 -10 -9 -8 -8 --------- Run | Yrd Mat Mat Mat Sto Machines Accessed 16 | . 9 4 1 2 Terminals 13 | . 7 4 1 1 Fabricators . | . . . . . Repair Stations . | . . . . . Recycling Units 3 | . 2 . . 1 Scanalyzers . | . . . . . Garrison Access . | . . . . . Total Hacks 45 | . 26 11 3 5 Successful 29 | . 17 7 3 2 Failed 16 | . 9 4 . 3 Catastrophic 4 | . 2 1 . 1 Database Lockouts . | . . . . . Manual 6 | . 5 1 . . Terminals 39 | . 24 11 3 1 Fabricators . | . . . . . Repair Stations . | . . . . . Recycling Units 6 | . 2 . . 4 Scanalyzers . | . . . . . Garrison Access . | . . . . . Terminal Hacks 26 | . 15 7 3 1 Record 3 | . 2 . 1 . Robot Analysis 2 | . . 2 . . Prototype ID Bank 1 | . 1 . . . Open Door 1 | . . . . 1 Branch Access Points 1 | . 1 . . . Emergency Access Points 4 | . 3 1 . . Alert Level 1 | . 1 . . . Unreport Threat 1 | . . 1 . . Dispatch Records 4 | . 2 1 1 . Maintenance Status 2 | . 2 . . . Recall Investigation 1 | . 1 . . . Hauler Manifests 1 | . . 1 . . Registered Components 1 | . . 1 . . Zone Layout 3 | . 2 . 1 . Fabricator Hacks . | . . . . . Repair Station Hacks . | . . . . . Recycling Unit Hacks 3 | . 2 . . 1 Report Inventory 3 | . 2 . . 1 Scanalyzer . | . . . . . Garrison Access Hacks . | . . . . . Unauthorized Hacks . | . . . . . Terminals . | . . . . . Fabricators . | . . . . . Repair Stations . | . . . . . Recycling Units . | . . . . . Scanalyzers . | . . . . . Garrison Access . | . . . . . Data Cores Recovered . | . . . . . Used . | . . . . . Hacking Detections 14 | . 8 4 1 1 Full Trace Events 8 | . 4 2 1 1 Feedback Events 1 | . 1 . . . Corruption 1 | . 1 . . . Feedback Blocked . | . . . . . Robot Schematics Acquired . | . . . . . Robots Built . | . . . . . Authchips . | . . . . . Time . | . . . . . Total Robot Build Rating . | . . . . . Part Schematics Acquired . | . . . . . Parts Built . | . . . . . Authchips . | . . . . . Time . | . . . . . Total Part Build Rating . | . . . . . Parts Repaired . | . . . . . Time . | . . . . . Parts Recycled . | . . . . . Recycled Matter . | . . . . . Retrieved Matter . | . . . . . Retrieved Components . | . . . . . Parts Scanalyzed . | . . . . . Part Schematics Acquired . | . . . . . Parts Damaged . | . . . . . Bothacking | -11 -10 -9 -8 -8 ------------ Run | Yrd Mat Mat Mat Sto Used RIF Installer . | . . . . . Robots Hacked 9 | . . 8 1 . Non-combat 8 | . . 7 1 . Combat 1 | . . 1 . . Robot Hacks Applied 16 | . . 15 1 . parse_system 4 | . . 4 . . no_distress 11 | . . 10 1 . find_recycling 1 | . . 1 . . Relay Couplers Released . | . . . . . Fabnet Peak Effective % . | . . . . . Robots Rewired . | . . . . . Allies Hacked . | . . . . . Hacks Repelled . | . . . . . Allies | -11 -10 -9 -8 -8 -------- Run | Yrd Mat Mat Mat Sto Total Allies . | . . . . . Largest Group . | . . . . . Highest-Rated Group . | . . . . . Highest-Rated Ally . | . . . . . Total Orders . | . . . . . Ally Attacks . | . . . . . Total Damage . | . . . . . Kills . | . . . . . Allies Corrupted . | . . . . . Allies Melted . | . . . . . Intel | -11 -10 -9 -8 -8 ------- Run | Yrd Mat Mat Mat Sto Robot Analysis Total 2 | . . 2 . . Derelict Logs Recovered . | . . . . . Drone Launches . | . . . . . Drone Recoveries . | . . . . . Exploration | -11 -10 -9 -8 -8 ------------- Run | Yrd Mat Mat Mat Sto Turns Passed 1978 | 84 807 604 241 242 Spaces Moved 1118 | 48 555 305 92 118 Core 13 | 9 . . 1 3 Treads . | . . . . . Legs 974 | 39 555 305 75 . Wheels 131 | . . . 16 115 Hover . | . . . . . Flight . | . . . . . Fastest Speed 50 | 50 120 120 115 105 Average Speed 137 | 113 120 160 180 133 Slowest Speed 500 | 200 120 190 500 500 Overloaded Moves . | . . . . . Propulsion Burnouts . | . . . . . Robots Hopped . | . . . . . Cave-ins Triggered . | . . . . . Exploration Rate (%) 33 | 4 86 36 10 30 Regions Visited 4 Branch Regions 1 Pre-discovered Areas . | . . . . . Known Exits Taken . | . . . . . Unknown Exits Taken 4 | 1 1 1 1 . Scrap Searched . | . . . . . Spaces Dug 1 | . . . . 1 Terrain Destroyed 192 | . 29 77 85 1 Melee 1 | . . . . 1 Projectile 1 | . . . 1 . AOE 190 | . 29 77 84 . Terrain Rammed . | . . . . . Walls Destroyed . | . . . . . Machines Disabled . | . . . . . Actions | -11 -10 -9 -8 -8 --------- Run | Yrd Mat Mat Mat Sto Total 1346 | 62 623 380 126 155 Wait 32 | . 7 23 2 . Move 1114 | 47 554 304 91 118 Hop . | . . . . . Pick Up 15 | . 9 1 1 4 Fast Attach 14 | 7 . . 4 3 Attach 10 | . . 3 1 6 Detach . | . . . . . Swap 12 | . 6 5 1 . Drop 8 | . 5 1 2 . Fire 117 | 7 42 22 23 23 Melee 22 | . . 20 1 1 Ram . | . . . . . Kick 2 | 1 . 1 . . Crush . | . . . . . Escape Stasis . | . . . . . Rewire . | . . . . . Trap . | . . . . . Miscellaneous . | . . . . . Route ------- -11/Scrapyard -10/Materials (discovered 4 exits: *Mat x3 / *Min) -9/Materials -8/Materials -8/Storage History --------- Turn | Location | Event 7 | -11/Scrapyard | Discovered new exit (range 16) 85 | -11/Scrapyard | Entered Materials 242 | -10/Materials | Destroyed 7 combat bots 314 | -10/Materials | Build established: Mutant 408 | -10/Materials | Discovered new exit (range 14) 560 | -10/Materials | Discovered new exit (range 7) 672 | -10/Materials | Discovered new exit (range 15) 696 | -10/Materials | Identified exit to Mines 834 | -10/Materials | Discovered new exit (range 16) 892 | -10/Materials | Entered another Materials area 892 | -9/Materials | Evolved 2 slots: Utility x2 1400 | -9/Materials | Discovered new exit (range 16) 1496 | -9/Materials | Entered another Materials area 1496 | -8/Materials | Evolved 2 slots: Utility x1, Weapon x1 1518 | -8/Materials | Discovered new exit (range 14) 1589 | -8/Materials | Garrison activated, responded to threat 1737 | -8/Materials | Entered Storage 1747 | -8/Storage | Lost 5 parts (1p2n2w) 1932 | -8/Storage | Garrison activated, responded to threat 1939 | -8/Storage | Core integrity fell below 50% 1964 | -8/Storage | Core integrity fell below 20% 1979 | -8/Storage | Destroyed by G-47 Trooper with Particle Gun Last Messages --------------- K-01 Serf collects debris. S-10 Pest destroyed. Penetrated by Slug. Y-45 Defender Imp. Ion Engine blasted off. K-01 Serf collects debris. Y-45 Defender destroyed. K-01 Serf collects debris. Lgt. Cannon destroyed. Acquired 12 matter. K-01 Serf collects debris. Penetrated by Slug. K-01 Serf collects debris. Overheating: System interference. Imp. Targeting Computer temporarily disabled. K-01 Serf collects debris. Hvy. Ion Engine destroyed. K-01 Serf collects debris. S-10 Pest destroyed. K-01 Serf collects debris. Slug penetrates Wall. Map ----- +----------------------------------------------------+ | ?????????????????????????????????????????????????? | | ?????????????????????????????????????????????????? | | ?????????????????????????????????????????????????? | | ?????????????????????????????????????????????????? | | ?????????????????????????????????????????????????? | | ?????????????????????????????????????????????????? | | ?????????????????????????????????????????????????? | | ????????#####????????????????????????????????????? | | ????????######???????????????????????????????????? | | ???????##"""##???????????????????????????????????? | | ? ???####"R"######???????????????????????????????? | | ? ??#####" "#######??????????????????????????????? | | # ??### ####?????????????????????????????? | | # ?? + ###?????????????????????????????? | | # ???## """ # ##?????????????????????????????? | | # ???## """ ###?????????????????????????????? | | # ##?## """ ##??????????????????????????????? | | # ##### ##??????????????????????????????? | | # ##### ##??????????????????????????????? | | + + % ! ##??????????????????????????????? | | # ######+#=########"""#?????? # ??????????????? | | # #### % %############?????? # ?""???????????? | | # #### ###### # """???????????? | | # #### % ######% / """???????????? | | #^ #### =%=g=%%% # ??????????????? | | + #### #"""T"""###@#*=* % # ??????????????? | | # #####! ##############% %# ??????????????? | | # #####% # ##### ##??????????????? | | # ! # ??????????## #######??????????????? | | #### ##### # ??????????## #######??????????????? | | #### ##### # ??????????## ##???????????????????? | | #?## ##?"" + ??????????## ##???????????????????? | | #?## ##?"T ????????????##/##???????????????????? | | #?## ##?"" ???????????? ???????????????????? | | #?##+##?## ?????????????"""????????????????????? | | #?? ? # ????????????????????????????????????? | | #??? ?? # ????????????????????????????????????? | | #??? ?? # ????????????????????????????????????? | | #??? ?? # ??????????????????????????????????????? | | ???? ???????????????????????????????????????????? | | ???? ???????????????????????????????????????????? | | ?????????????????????????????????????????????????? | | ?????????????????????????????????????????????????? | | ?????????????????????????????????????????????????? | | ?????????????????????????????????????????????????? | | ?????????????????????????????????????????????????? | | ?????????????????????????????????????????????????? | | ?????????????????????????????????????????????????? | | ?????????????????????????????????????????????????? | | ?????????????????????????????????????????????????? | +----------------------------------------------------+ Best States ------------- Heat Dissipation 45 Energy Generation 14 Energy Capacity 280 Matter Stores 300 Matter Capacity 300 Sight Range 16 Terrain Scan Range 16 Terrain Scan Density 10 Armor Coverage 150 Resistance: KI 20 Resistance: TH 20 Resistance: EX 20 Resistance: EM 20 Resistance: I 20 Resistance: S 20 Resistance: P 20 Evasion (%) 55 Targeting Accuracy 6 Offensive Hacking 10 Item Schematics ----------------- None Robot Schematics ------------------ None Fabricated ------------ Nothing Alien Tech Used ----------------- None Achievements -------------- None Challenges ------------ None Game ------ Seed CannonDroneRouter Manual? 0 Play Time 00:30:30 Cumulative 20.6 hours Start 2024.05.30 @ 23:27:05 End 2024.05.30 @ 23:59:11 Sessions 1 Manual Loads 0 Difficulty Adventurer Special Mode None Game No. 8 Rogue 0 Adventurer 8 Explorer 0 Win Type - Total 0 Types 0/0/0/0/0/0/0/0/0 Lore% 15 Gallery% 21 Achievement% 17 Wizard Run 0 Options --------- Layout 0 ASCII 0 Keyboard 0 Movement Arrows Keybinds 0 Fullscreen 1 Font 18/SmallcapsGlow Map View 76x50 Zoom Use 0% Tactical HUD 0 Map Filters NONE Filters NONE Steam 1 RUN: e4d991ea-d5dc-4315-9509-c66d3215352a